bitfinex-derivatives/quotes_BTCF0:USTF0_20251210
["timestamp","ask_amount","ask_price","bid_price","bid_amount"]
[1765399874252,0.35205,93332.0,93329.0,0.0107128]
[1765399874450,0.3627625,93332.0,93329.0,0.02]
[1765399874654,0.35205,93332.0,93329.0,0.02]
[1765399874855,0.08737319,93337.0,93336.0,0.010712]
[1765399875054,0.35205,93337.0,93336.0,0.010712]
[1765399875354,0.35205,93337.0,93326.0,0.3608]
[1765399875355,0.03066164,93337.0,93326.0,0.3608]
[1765399875545,0.3608,93330.0,93321.0,0.00016066]
[1765399875946,0.3608,93330.0,93329.0,0.0107128]
[1765399876150,0.3608,93330.0,93321.0,0.00016066]
[1765399876151,0.70566,93328.0,93327.0,0.010713]
[1765399876356,0.70566,93326.0,93325.0,0.0107132]
[1765399876744,0.7163736,93322.0,93321.0,0.00016066]
[1765399877152,0.7163736,93322.0,93315.0,1.64e-06]
[1765399877153,0.0107143,93316.0,93315.0,1.64e-06]
[1765399877352,0.0107143,93316.0,93304.0,0.03778885]
[1765399877353,0.0107149,93311.0,93304.0,0.03778885]
[1765399877547,0.50408,93315.0,93314.0,0.6965045]
[1765399877748,0.3608,93326.0,93325.0,0.6965033]
[1765399878445,0.3608,93326.0,93314.0,0.03778885]
[1765399878650,0.3608,93326.0,93312.0,0.20359]
[1765399878651,0.3608,93326.0,93321.0,0.0107136]
[1765399878954,0.3638,93326.0,93321.0,0.0107136]
[1765399879258,0.3638,93326.0,93312.0,0.20359]
[1765399879259,0.003,93326.0,93325.0,0.6965033]
[1765399879458,0.3608,93331.0,93330.0,0.6965027]
[1765399879957,0.3608,93331.0,93330.0,0.0107127]
[1765399880350,0.3608,93331.0,93321.0,0.001]
[1765399880560,0.3715136,93322.0,93321.0,0.34708]
[1765399880754,0.3608,93331.0,93330.0,0.6965027]
[1765399881563,0.3715126,93331.0,93322.0,0.0107136]
[1765399881761,0.3608,93323.0,93322.0,0.0107136]
[1765399881963,0.3715135,93323.0,93316.0,0.0107143]
[1765399882154,0.3608,93323.0,93319.0,0.0107139]
[1765399882347,0.3608,93323.0,93306.0,0.05701598]
[1765399882348,0.70566,93307.0,93306.0,0.00021414]
[1765399882560,0.7163754,93307.0,93301.0,0.03789721]
[1765399882759,0.5044,93308.0,93301.0,0.03789721]
[1765399882760,0.3608,93302.0,93301.0,0.00010836]
[1765399883153,0.7163767,93295.0,93294.0,0.05680184]
[1765399883355,0.3608,93297.0,93277.0,0.08645868]
[1765399883552,0.36096075,93296.0,93294.0,0.0107168]
[1765399883748,0.3608,93316.0,93315.0,0.0107144]
[1765399884056,0.3608,93329.0,93323.0,0.0107135]
[1765399884250,0.0001085,93328.0,93318.0,0.5048]
[1765399884464,0.0001085,93328.0,93325.0,0.0107132]
[1765399884852,0.35205,93307.0,93306.0,0.003]
[1765399885057,0.00216075,93316.0,93310.0,0.0107149]
[1765399885259,0.0107161,93300.0,93297.0,0.00016075]
[1765399885553,0.7057685,93299.0,93298.0,0.0107164]
[1765399885857,0.7057685,93299.0,93279.0,0.45591027]
[1765399885858,0.2043,93290.0,93265.0,0.00118057]
[1765399886059,0.2043,93290.0,93234.0,0.07573998]
[1765399886060,0.70566,93252.0,93249.0,0.3608]
[1765399886261,0.25196403,93259.0,93240.0,0.00107251]
[1765399886564,0.25196403,93259.0,93215.0,0.00107279]
[1765399886565,0.70566,93216.0,93215.0,0.00107279]
[1765399886749,0.0107282,93196.0,93190.0,0.00107308]
[1765399886949,0.0107278,93199.0,93190.0,0.00107308]
[1765399887155,0.00012332,93198.0,93191.0,0.0107287]
[1765399887362,0.70566,93191.0,93171.0,0.0107309]
[1765399887567,0.70566,93191.0,93153.0,0.010733]
[1765399887568,0.70566,93166.0,93153.0,0.010733]
[1765399887756,0.0107302,93178.0,93160.0,0.0107322]
[1765399888064,0.0107313,93169.0,93153.0,0.010733]
[1765399888255,0.68106,93166.0,93151.0,0.0107332]
[1765399888453,0.0107351,93135.0,93134.0,8.708e-05]
[1765399888662,0.50816,93135.0,93120.0,0.00021456]
[1765399888865,0.50816,93135.0,93120.0,0.01095136]
[1765399889063,0.50816,93135.0,93120.0,0.00021456]
[1765399889263,0.10733587,93134.0,93130.0,0.0107356]
[1765399889465,8.766e-05,93134.0,93130.0,0.0107356]
[1765399889764,8.766e-05,93134.0,93130.0,0.0507356]
[1765399890266,0.00016106,93144.0,93120.0,0.19700456]
[1765399890267,0.00013341,93133.0,93120.0,0.00021456]
[1765399890456,0.0107392,93100.0,93079.0,0.0107416]
[1765399890760,0.10086,93120.0,93069.0,0.0107427]
[1765399890761,0.00016106,93099.0,93069.0,0.0107427]
[1765399890963,0.2043,93075.0,93069.0,0.05]
[1765399891165,0.00012321,93074.0,93044.0,0.18024]
[1765399891463,0.0107416,93079.0,93053.0,0.0107445]
[1765399891665,0.3778416,93080.0,93075.0,0.0107419]
[1765399891666,0.00016114,93080.0,93075.0,0.0107419]
[1765399891857,0.4787016,93120.0,93102.0,0.0107388]
[1765399892058,0.4787016,93120.0,93069.0,0.19679]
[1765399892258,0.4787016,93120.0,93070.0,0.0107426]
[1765399892259,0.001,93074.0,93070.0,0.0107426]
[1765399892463,0.3778416,93100.0,93086.0,0.0107407]
[1765399892760,0.3778416,93100.0,93053.0,0.03196]
[1765399892761,0.0107394,93099.0,93053.0,0.03196]
[1765399892959,0.00016114,93085.0,93078.0,0.0107416]
[1765399893152,9.406e-05,93084.0,93078.0,0.0107416]
[1765399893352,0.0107412,93083.0,93067.0,0.00016114]
[1765399893558,0.0107424,93072.0,93067.0,0.00016114]
[1765399893765,9.867e-05,93071.0,93067.0,0.00016114]
[1765399894464,0.0107425,93071.0,93067.0,0.00016114]
[1765399894655,0.10743331,93070.0,93053.0,0.004]
[1765399894864,0.31525057,93054.0,93053.0,0.004]
[1765399895061,0.0536992,93095.0,93053.0,0.004]
[1765399895263,0.31525057,93063.0,93060.0,0.0107437]
[1765399895463,0.10744716,93084.0,93040.0,0.05373]
[1765399895662,0.31525057,93070.0,93044.0,0.14]
[1765399895969,0.00016114,93073.0,93067.0,0.0107429]
[1765399896266,0.00016114,93073.0,93044.0,0.14]
[1765399896267,0.31525057,93070.0,93052.0,0.0107446]
[1765399896565,0.31525057,93070.0,93044.0,0.05]
[1765399896566,0.0107434,93064.0,93044.0,0.05]
[1765399896760,0.0107436,93062.0,93044.0,0.14]
[1765399896960,0.001,93054.0,93045.0,0.0107454]
[1765399897165,9.507e-05,93053.0,93051.0,0.0107447]
[1765399897655,0.31525057,93070.0,93050.0,0.19679]
[1765399897656,0.31925057,93070.0,93065.0,0.0107431]
[1765399897855,0.004,93070.0,93065.0,0.0107431]
[1765399898055,0.00116114,93073.0,93072.0,0.0107424]
[1765399898265,0.00116114,93073.0,93062.0,0.0107435]
[1765399898568,0.00016114,93073.0,93055.0,0.0107443]
[1765399898772,0.00016114,93073.0,93061.0,0.0107435]
[1765399899070,0.31525057,93071.0,93054.0,0.0107444]
[1765399899366,0.00116114,93073.0,93072.0,0.0107424]
[1765399899565,0.31525057,93100.0,93098.0,0.0107393]
[1765399899769,0.31525057,93120.0,93111.0,0.0107378]
[1765399899960,0.31525057,93120.0,93082.0,0.0537061]
[1765399900159,0.31525057,93120.0,93106.0,0.0107385]
[1765399900361,0.31525057,93120.0,93082.0,0.0537061]
[1765399900560,0.00016114,93110.0,93104.0,0.0107386]
[1765399901073,0.00016114,93110.0,93092.0,0.00016114]
[1765399901457,0.0107392,93100.0,93051.0,0.0107448]
[1765399901662,0.31525057,93090.0,93051.0,0.09]
[1765399901870,0.0107404,93089.0,93075.0,0.0107419]
[1765399902166,0.0107421,93075.0,93056.0,0.0107441]
[1765399902366,0.0107421,93075.0,93056.0,0.08]
[1765399902367,0.00016114,93075.0,93056.0,0.08]
[1765399902572,0.00016114,93075.0,93057.0,0.0107441]
[1765399902768,0.00016114,93075.0,93057.0,0.08]
[1765399902769,0.0107427,93070.0,93057.0,0.08]
[1765399903159,0.00016114,93075.0,93044.0,0.05]
[1765399903567,0.0107429,93068.0,93054.0,0.0107444]
[1765399903770,0.31525057,93070.0,93058.0,0.0107439]
[1765399903965,0.001,93070.0,93065.0,0.0107431]
[1765399904174,0.001,93070.0,93044.0,0.05]
[1765399904358,0.010744,93059.0,93044.0,0.13]
[1765399904561,0.0107447,93053.0,93044.0,0.13]
[1765399904761,0.31525057,93060.0,93044.0,0.05]
[1765399905163,0.0107453,93047.0,93044.0,0.05]
[1765399905366,0.0107453,93047.0,93010.0,0.0107494]
[1765399905574,0.0107493,93013.0,93002.0,9.839e-05]
[1765399905869,0.0537283,93044.0,93002.0,9.839e-05]
[1765399905870,0.00016124,93017.0,93002.0,0.08009839]
[1765399906069,0.00016124,93017.0,93013.0,0.0107492]
[1765399906568,4e-08,93017.0,93013.0,0.0107492]
[1765399906776,0.31525057,93030.0,93029.0,0.0107474]
[1765399906977,0.31525057,93039.0,93034.0,0.0107468]
[1765399907270,0.31525057,93039.0,93002.0,9.839e-05]
[1765399907571,0.31525057,93030.0,93013.0,0.0137491]
[1765399907770,0.0107489,93016.0,93013.0,0.003]
[1765399908089,0.31525057,93023.0,93012.0,0.00016124]
[1765399908372,0.0107511,92997.0,92979.0,0.010753]
[1765399908559,0.31525057,92990.0,92979.0,0.08]
[1765399908766,0.10750665,93022.0,92979.0,0.08]
[1765399908964,0.21325,93024.0,92980.0,0.0107529]
[1765399908965,0.31525057,92990.0,92980.0,0.0107529]
[1765399909161,0.31525057,92990.0,92980.0,0.09]
[1765399909360,9.12e-05,92989.0,92952.0,0.19679]
[1765399909564,0.31525057,92990.0,92952.0,0.19679]
[1765399909565,0.0107525,92985.0,92952.0,0.28679]
[1765399909871,0.00016124,92994.0,92952.0,0.28679]
[1765399909872,0.31525057,92970.0,92952.0,0.09]
[1765399910062,0.31525057,92970.0,92967.0,0.0107544]
[1765399910063,2e-08,92970.0,92967.0,0.0107544]
[1765399910768,0.31525057,92990.0,92989.0,0.010752]
[1765399911072,0.31525057,92990.0,92952.0,0.019]
[1765399911073,0.001,92970.0,92952.0,0.019]
[1765399911278,0.31525057,92962.0,92952.0,0.041]
[1765399911471,0.31525057,92962.0,92952.0,0.0517562]
[1765399911665,0.31525057,92962.0,92957.0,0.0107556]
[1765399912969,0.00016134,92966.0,92965.0,0.0107548]
[1765399913274,0.31525057,92980.0,92978.0,0.0107531]
[1765399913467,0.31525057,92980.0,92957.0,0.0107556]
[1765399913468,0.31525057,92980.0,92976.0,0.0107534]
[1765399913666,0.31525057,92980.0,92957.0,0.019]
[1765399913874,0.31525057,92980.0,92920.0,0.0107599]
[1765399913875,0.21325,92952.0,92891.0,0.0538165]
[1765399914067,0.00016134,92931.0,92925.0,0.0107594]
[1765399914372,0.0107596,92924.0,92888.0,0.0107636]
[1765399914674,0.31525057,92910.0,92880.0,0.005]
[1765399914973,0.31525057,92890.0,92880.0,0.005]
[1765399915382,0.31525057,92890.0,92887.0,0.0107637]
[1765399915673,0.31525057,92910.0,92908.0,0.0107613]
[1765399915876,0.12187,92900.0,92880.0,0.005]
[1765399916064,0.10766,92889.0,92888.0,0.0107637]
[1765399916269,0.00012944,92889.0,92881.0,0.00016144]
[1765399916466,0.0107626,92888.0,92881.0,0.00016144]
[1765399916769,0.00016144,92899.0,92881.0,0.00016144]
[1765399916770,0.0107629,92886.0,92881.0,0.00016144]
[1765399916975,0.10766,92887.0,92880.0,0.01116144]
[1765399917170,0.00016144,92899.0,92880.0,0.01116144]
[1765399917371,0.0107632,92883.0,92880.0,0.00316144]
[1765399917567,0.21325,92825.0,92820.0,8.31e-05]
[1765399917768,0.21325,92825.0,92780.0,0.3146753]
[1765399917769,0.0538508,92823.0,92780.0,0.2608]
[1765399917975,0.31525057,92800.0,92780.0,0.2708]
[1765399918178,0.31525057,92810.0,92780.0,0.2608]
[1765399918378,0.00016163,92811.0,92780.0,0.2608]
[1765399918677,0.0107741,92789.0,92780.0,0.2608]
[1765399918879,0.31525057,92790.0,92780.0,0.2608]
[1765399919271,0.00013282,92789.0,92780.0,0.2608]
[1765399919471,0.31525057,92800.0,92780.0,0.2608]
[1765399919678,0.10776384,92789.0,92780.0,0.2608]
[1765399919975,0.31525057,92790.0,92780.0,0.2608]
[1765399919976,0.0107743,92787.0,92780.0,0.2608]
[1765399920174,0.004,92800.0,92780.0,0.2608]
[1765399920175,0.10777662,92789.0,92780.0,0.2608]
[1765399920378,0.004,92800.0,92780.0,0.3408]
[1765399920675,0.31525057,92810.0,92780.0,0.3408]
[1765399920877,0.31525057,92790.0,92780.0,0.2608]
[1765399921068,0.12704,92745.0,92685.0,0.05555859]
[1765399921265,0.20896,92691.0,92685.0,0.0098302]
[1765399921480,0.0107856,92690.0,92685.0,0.0098302]
[1765399921678,0.010787,92678.0,92637.0,0.46591]
[1765399921880,0.31525057,92670.0,92637.0,0.46591]
[1765399922073,0.10788883,92689.0,92644.0,0.00016183]
[1765399922377,0.31525057,92710.0,92670.0,0.2590496]
[1765399922580,0.08589103,92713.0,92689.0,0.0107856]
[1765399922777,0.10788883,92717.0,92673.0,0.0107875]
[1765399922977,0.0107832,92711.0,92670.0,0.20511]
[1765399923181,0.3154124,92700.0,92681.0,0.00016183]
[1765399923476,0.01091565,92699.0,92690.0,0.00132526]
[1765399923667,0.31525057,92691.0,92690.0,0.00132526]
[1765399924071,9.225e-05,92691.0,92690.0,0.00132526]
[1765399924278,0.00016183,92700.0,92691.0,0.0107855]
[1765399924477,0.0107813,92727.0,92695.0,0.00132526]
[1765399924684,0.31525057,92730.0,92695.0,0.00132526]
[1765399924867,0.31525057,92740.0,92695.0,0.01211016]
[1765399925071,0.0107767,92767.0,92716.0,0.0107825]
[1765399925266,0.1078801,92755.0,92700.0,0.20511]
[1765399925472,0.00016174,92737.0,92727.0,0.00132526]
[1765399925672,0.31525057,92740.0,92727.0,0.00132526]
[1765399926080,0.0107807,92732.0,92727.0,0.00132526]
[1765399926580,5.028e-05,92731.0,92729.0,0.00132526]
[1765399926784,5.028e-05,92730.0,92729.0,0.00132526]
[1765399927566,5.028e-05,92730.0,92727.0,0.01]
[1765399927567,0.10789082,92730.0,92727.0,0.015]
[1765399927774,5.028e-05,92729.0,92727.0,0.015]
[1765399928679,0.00016174,92741.0,92736.0,0.2158902]
[1765399928871,0.00016174,92741.0,92736.0,0.20511]
[1765399929069,0.31525057,92760.0,92737.0,0.4107801]
[1765399929267,0.31525057,92760.0,92743.0,0.0107793]
[1765399929468,0.31525057,92780.0,92736.0,0.60511]
[1765399929674,0.08807195,92814.0,92764.0,0.20378]
[1765399929881,0.31525057,92800.0,92792.0,0.20378]
[1765399930077,0.00016164,92805.0,92804.0,0.0107723]
[1765399930278,0.31525057,92830.0,92804.0,0.4]
[1765399930477,0.31525057,92830.0,92807.0,0.3608]
[1765399930681,0.36101542,92841.0,92826.0,0.0107698]
[1765399930682,0.3608,92833.0,92826.0,0.0107698]
[1765399930979,0.3608,92833.0,92820.0,0.56458]
[1765399930980,0.00021542,92841.0,92840.0,0.0107681]
[1765399931181,0.00016164,92850.0,92841.0,0.0107679]
[1765399931378,0.3608,92865.0,92840.0,0.7608]
[1765399931379,0.3608,92865.0,92849.0,0.3608]
[1765399931581,0.31515057,92870.0,92849.0,0.3608]
[1765399931789,0.31515057,92870.0,92857.0,0.3608]
[1765399932079,0.3608,92883.0,92857.0,0.3608]
[1765399932080,0.31525057,92880.0,92857.0,0.3608]
[1765399932281,0.31525057,92900.0,92877.0,0.3608]
[1765399932591,0.3608,92895.0,92879.0,0.00016146]
[1765399932787,0.3608,92895.0,92881.0,0.3608]
[1765399933284,0.3608,92895.0,92879.0,0.00016146]
[1765399933485,0.3608,92889.0,92880.0,0.3715635]
[1765399933676,0.3608,92897.0,92880.0,0.3608]
[1765399933877,0.3715625,92889.0,92879.0,0.00016146]
[1765399934184,0.67605057,92889.0,92881.0,0.002]
[1765399934383,0.00016146,92898.0,92881.0,0.002]
[1765399934384,0.00016146,92898.0,92888.0,0.3608]
[1765399934590,0.31525057,92920.0,92897.0,0.3608]
[1765399934887,0.3608,92938.0,92913.0,0.3608]
[1765399935078,0.3608,92947.0,92941.0,0.0107563]
[1765399935283,0.3608,92964.0,92941.0,0.0107563]
[1765399935590,0.67605057,92970.0,92940.0,0.20378]
[1765399935591,0.31525057,92970.0,92951.0,0.0107553]
[1765399935791,0.3608,92975.0,92961.0,0.3608]
[1765399935992,0.3608,92964.0,92950.0,0.3715554]
[1765399936188,0.31525057,92960.0,92940.0,0.3608]
[1765399936380,0.3608,92951.0,92941.0,0.004]
[1765399936583,0.31525057,92951.0,92941.0,0.004]
[1765399937087,0.31525057,92951.0,92880.0,0.20378]
[1765399937088,0.10758935,92950.0,92894.0,0.0107618]
[1765399937288,0.31525057,92950.0,92891.0,0.23752]
[1765399937487,0.31525057,92950.0,92880.0,0.20477999]
[1765399937488,0.0107565,92941.0,92910.0,0.20378]
[1765399937687,0.31525057,92930.0,92888.0,0.0107625]
[1765399937886,0.0107585,92924.0,92880.0,0.2145435]
[1765399938079,0.00016146,92912.0,92894.0,0.00016146]
[1765399938686,0.004,92951.0,92901.0,0.0538055]
[1765399938880,0.004,92951.0,92932.0,0.0107574]
[1765399939077,0.004,92951.0,92925.0,0.0107582]
[1765399939277,0.004,92951.0,92931.0,0.0107576]
[1765399939481,0.31525057,92960.0,92927.0,0.010758]
[1765399939683,0.00010105,92953.0,92934.0,0.00016146]
[1765399939879,0.00010105,92953.0,92947.0,0.0107556]
[1765399940084,0.00010105,92953.0,92945.0,0.20378]
[1765399940284,0.0107559,92946.0,92934.0,0.00016146]
[1765399940492,0.00010105,92953.0,92935.0,0.010757]
[1765399940493,0.3608,92939.0,92935.0,0.010757]
[1765399940788,0.00010105,92953.0,92938.0,0.3608]
[1765399941184,0.00010105,92953.0,92934.0,0.00016146]
[1765399941385,0.3608,92939.0,92934.0,0.00016146]
[1765399941585,0.0107568,92938.0,92934.0,0.00016146]
[1765399941781,0.0107574,92933.0,92906.0,0.3608]
[1765399941982,0.3608,92922.0,92904.0,0.3608]
[1765399942393,0.3608,92905.0,92893.0,0.3608]
[1765399942587,0.3608,92905.0,92880.0,0.20378]
[1765399942588,0.3608,92897.0,92880.0,0.20378]
[1765399943186,0.3608,92897.0,92881.0,0.0107633]
[1765399943393,0.3608,92897.0,92891.0,0.0107622]
[1765399943394,0.33560469,92897.0,92891.0,0.0107622]
[1765399943598,0.3608,92914.0,92905.0,0.0107605]
[1765399943797,0.002,92922.0,92914.0,0.0107596]
[1765399944095,0.002,92922.0,92921.0,0.3608]
[1765399944691,0.002,92922.0,92912.0,0.36096146]
[1765399944961,0.3608,92918.0,92912.0,0.00016146]
[1765399945187,0.00010105,92931.0,92887.0,0.3608]
[1765399945188,0.7216,92913.0,92887.0,0.3608]
[1765399945396,0.0107623,92891.0,92887.0,0.3608]
[1765399945609,0.0107623,92891.0,92871.0,0.3608]
[1765399945893,0.3608,92913.0,92888.0,0.3608]
[1765399946096,0.31541203,92910.0,92900.0,0.3608]
[1765399946297,0.00016146,92910.0,92908.0,0.3608]
[1765399946592,0.00016146,92910.0,92909.0,0.0107601]
[1765399946783,0.00016146,92910.0,92900.0,0.3608]
[1765399947189,0.31541203,92910.0,92891.0,0.00016146]
[1765399947388,0.0107619,92895.0,92891.0,0.00016146]
[1765399947788,0.3608,92892.0,92891.0,0.00016146]
[1765399948197,0.31525057,92901.0,92891.0,0.00016146]
[1765399948598,0.3608,92892.0,92891.0,0.00016146]
[1765399949001,0.3608,92902.0,92891.0,0.00016146]
[1765399949002,0.3608,92902.0,92896.0,0.0107616]
[1765399949200,0.3608,92902.0,92891.0,0.00216146]
[1765399949499,0.3608,92896.0,92891.0,0.00216146]
[1765399949893,0.0107678,92844.0,92831.0,0.3608]
[1765399950200,0.19479,92880.0,92812.0,0.3608]
[1765399950201,0.31525057,92850.0,92812.0,0.3608]
[1765399950386,0.3608,92829.0,92811.0,0.3608]
[1765399950591,0.3608,92856.0,92830.0,0.0107692]
[1765399950786,0.3608,92850.0,92847.0,0.0107673]
[1765399950997,0.00016157,92852.0,92849.0,0.0107671]
[1765399951199,0.31525057,92880.0,92859.0,0.0107659]
[1765399951398,0.1077354,92851.0,92780.0,0.00099999]
[1765399951697,0.31525057,92850.0,92826.0,0.0107698]
[1765399951896,0.0107681,92841.0,92830.0,0.006]
[1765399952091,0.0107648,92870.0,92830.0,0.006]
[1765399952092,0.31525057,92840.0,92830.0,0.006]
[1765399952397,0.31525057,92840.0,92784.0,0.3608]
[1765399952398,0.0107726,92802.0,92784.0,0.3608]
[1765399952598,0.0107728,92800.0,92750.0,0.01177849]
[1765399952798,0.31525057,92810.0,92792.0,0.00610569]
[1765399953006,0.0107724,92804.0,92792.0,0.00610569]
[1765399953296,0.19479,92826.0,92792.0,0.00610569]
[1765399953500,0.3608,92798.0,92797.0,0.0107731]
[1765399953801,0.3608,92805.0,92804.0,0.0107723]
[1765399954101,0.31525057,92814.0,92803.0,0.35775561]
[1765399954289,0.0107727,92801.0,92792.0,0.01210569]
[1765399954491,0.001,92802.0,92792.0,0.01210569]
[1765399954802,0.001,92802.0,92793.0,0.0107736]
[1765399954803,0.3608,92794.0,92793.0,0.0107736]
[1765399954998,0.7216,92794.0,92792.0,0.00010569]
[1765399955894,0.7226,92794.0,92792.0,0.00010569]
[1765399956100,0.7226,92794.0,92792.0,0.01087939]
[1765399956301,0.3618,92794.0,92793.0,0.4]
[1765399957202,0.36096157,92818.0,92806.0,0.0107721]
[1765399957394,0.36096157,92818.0,92817.0,0.0107708]
[1765399958410,0.00016157,92818.0,92817.0,0.0107708]
[1765399958590,0.3608,92857.0,92845.0,0.0107676]
[1765399958899,0.3608,92857.0,92808.0,0.00016157]
[1765399958900,0.1077383,92836.0,92786.0,0.3608]
[1765399959104,0.1077383,92836.0,92780.0,0.3608]
[1765399959105,0.3608,92807.0,92793.0,0.0107735]
[1765399959301,0.3608,92807.0,92802.0,0.0107725]
[1765399959505,0.3608,92807.0,92795.0,0.00016157]
[1765399959708,0.3608,92807.0,92800.0,0.0107728]
[1765399960106,0.00016157,92814.0,92809.0,0.0107717]
[1765399960301,0.010773,92798.0,92795.0,0.00016157]
[1765399961109,0.7216,92796.0,92795.0,0.00016157]
[1765399962496,0.0147731,92798.0,92795.0,0.00016157]
[1765399962697,0.0107731,92798.0,92795.0,0.00016157]
[1765399962904,0.3608,92798.0,92795.0,0.00016157]
[1765399963407,0.0107716,92811.0,92796.0,0.0107732]
[1765399963604,0.3608,92812.0,92803.0,0.3715723]
[1765399963801,0.00016157,92814.0,92803.0,0.3608]
[1765399964107,0.0107733,92796.0,92795.0,0.00116157]
[1765399964404,0.7216,92796.0,92747.0,0.38016]
[1765399964604,0.0107772,92763.0,92748.0,0.06099412]
[1765399964912,0.0107768,92766.0,92750.0,0.0107786]
[1765399965201,0.36096167,92767.0,92766.0,0.0107767]
[1765399965402,0.3608,92767.0,92766.0,0.0107767]
[1765399965602,8.27e-05,92767.0,92766.0,0.0107767]
[1765399965802,8.27e-05,92767.0,92766.0,0.4107767]
[1765399966005,0.00016167,92776.0,92775.0,0.2252657]
[1765399966202,0.3608,92795.0,92783.0,0.0107748]
[1765399966401,0.3608,92805.0,92803.0,0.0107724]
[1765399966800,0.3608,92817.0,92816.0,0.0107709]
[1765399967004,0.3608,92835.0,92809.0,0.3608]
[1765399967208,0.3608,92826.0,92814.0,0.0107712]
[1765399967506,0.3608,92826.0,92825.0,0.0107699]
[1765399967707,0.3608,92826.0,92813.0,0.00016167]
[1765399967708,0.3608,92826.0,92813.0,0.01093297]
[1765399968007,0.3715711,92815.0,92813.0,0.00016167]
[1765399968509,0.3608,92815.0,92814.0,0.001]
[1765399969212,0.3628,92815.0,92813.0,0.00016167]
[1765399969510,0.3735712,92815.0,92813.0,0.00016167]
[1765399969708,0.3628,92815.0,92813.0,0.00016167]
[1765399970102,0.3628,92815.0,92813.0,0.01093297]
[1765399970301,0.3608,92826.0,92813.0,0.01093297]
[1765399970501,0.3608,92826.0,92825.0,0.0107699]
[1765399970806,0.002,92815.0,92814.0,0.0107712]
[1765399971110,0.002,92815.0,92800.0,0.7522628]
[1765399971111,0.0107716,92811.0,92770.0,0.36179999]
[1765399971312,0.3608,92786.0,92769.0,0.0107763]
[1765399971610,0.3608,92786.0,92770.0,0.5268]
[1765399971795,0.3608,92786.0,92775.0,0.00012026]
[1765399971796,0.3608,92776.0,92775.0,0.00012026]
[1765399971999,0.3608,92776.0,92775.0,0.21461026]
[1765399972306,0.00016167,92785.0,92784.0,0.0107746]
[1765399972512,0.36096167,92785.0,92775.0,0.21561026]
[1765399972710,0.3608,92779.0,92775.0,0.21561026]
[1765399972908,0.3608,92776.0,92775.0,0.00112026]
[1765399973607,0.3608,92776.0,92749.0,0.52648]
[1765399973608,0.0107766,92767.0,92749.0,0.52648]
[1765399973907,0.3715766,92767.0,92749.0,0.52648]
[1765399974105,0.3715766,92767.0,92755.0,0.0107779]
[1765399974306,0.3608,92767.0,92759.0,0.0107775]
[1765399974609,0.36091087,92767.0,92759.0,0.0107775]
[1765399975002,0.36091087,92767.0,92754.0,0.010778]
[1765399975211,0.36091087,92767.0,92750.0,1.5]
[1765399975408,0.36091087,92767.0,92766.0,0.00616167]
[1765399979119,0.0107787,92750.0,92748.0,0.05021542]
[1765399979416,0.19479,92775.0,92748.0,0.05021542]
[1765399979417,0.72168184,92749.0,92748.0,0.05021542]
[1765399979812,0.68736746,92749.0,92748.0,1.15094542]
[1765399980016,0.3608,92773.0,92769.0,0.0107764]
[1765399980416,0.00016167,92780.0,92779.0,0.7115052]
[1765399980912,0.3608,92801.0,92779.0,0.7115052]
[1765399980913,0.3608,92801.0,92800.0,0.0107728]
[1765399981120,0.08769544,92866.0,92851.0,0.0107669]
[1765399981319,0.08769544,92866.0,92808.0,0.2185018]
[1765399981320,0.02415764,92862.0,92836.0,0.52568]
[1765399981520,0.08769544,92866.0,92836.0,0.52568]
[1765399981717,0.38011688,92890.0,92858.0,0.010766]
[1765399981917,0.0107633,92882.0,92865.0,0.00016154]
[1765399982217,0.2694,92877.0,92865.0,0.01092664]
[1765399982410,0.2694,92877.0,92865.0,0.01092674]
[1765399982807,0.2694,92877.0,92876.0,0.3608]
[1765399983221,0.2694,92877.0,92837.0,0.3608]
[1765399983222,0.0107681,92841.0,92837.0,0.3608]
[1765399983517,0.4,92841.0,92810.0,0.00012555]
[1765399983720,0.0107715,92812.0,92810.0,0.00012555]
[1765399983923,0.0107709,92817.0,92810.0,0.00012555]
[1765399984719,0.00016154,92823.0,92810.0,0.00012555]
[1765399984930,0.0107712,92814.0,92810.0,0.00012555]
[1765399985220,0.0107713,92814.0,92810.0,0.00012555]
[1765399985424,0.0107722,92806.0,92788.0,0.0107742]
[1765399985608,0.20717,92820.0,92764.0,0.48112]
[1765399985808,0.010774,92790.0,92764.0,0.48112]
[1765399986012,0.3608,92786.0,92779.0,0.0107752]
[1765399986316,0.280172,92807.0,92783.0,0.3608]
[1765399986515,8.403e-05,92785.0,92773.0,0.00016164]
[1765399986717,8.403e-05,92785.0,92775.0,0.0107756]
[1765399987025,0.0107751,92781.0,92773.0,0.00016164]
[1765399987213,8.403e-05,92785.0,92773.0,0.00016164]
[1765399987412,0.3608,92780.0,92773.0,0.00016164]
[1765399987616,0.0107751,92780.0,92773.0,0.00016164]
[1765399987922,0.00108403,92785.0,92783.0,0.0107747]
[1765399988327,0.2694,92784.0,92783.0,0.0107747]
[1765399988915,0.00108403,92785.0,92783.0,0.0107747]
[1765399989116,8.403e-05,92785.0,92783.0,0.0107747]
[1765399990119,0.2694,92784.0,92783.0,0.001]
[1765399990644,8.403e-05,92785.0,92783.0,0.001]
[1765399990826,0.2694,92784.0,92783.0,0.0117747]
[1765399991221,0.2694,92784.0,92783.0,0.001]
[1765399991410,0.2694,92784.0,92724.0,0.3608]
[1765399991411,0.0107787,92749.0,92724.0,0.3608]
[1765399991611,0.0107787,92749.0,92713.0,0.43653998]
[1765399991612,0.0107808,92732.0,92717.0,0.0107823]
[1765399991818,0.3608,92730.0,92714.0,0.3608]
[1765399992021,0.3608,92730.0,92706.0,0.3608]
[1765399992022,0.0107815,92725.0,92704.0,0.0107839]
[1765399992224,0.3608,92714.0,92696.0,0.0107848]
[1765399992425,0.00016173,92714.0,92696.0,0.00016173]
[1765399992611,0.00016173,92714.0,92708.0,0.3608]
[1765399992812,0.00016173,92714.0,92709.0,0.0107834]
[1765399993013,0.00010949,92713.0,92709.0,0.0107834]
[1765399993822,0.00010949,92713.0,92711.0,0.0107831]
[1765399994220,0.3608,92739.0,92711.0,0.0107831]
[1765399994221,0.3608,92750.0,92738.0,0.01078]
[1765399994428,0.3608,92769.0,92768.0,0.0107765]
[1765399994634,0.3608,92769.0,92750.0,0.3608]
[1765399994932,0.3608,92769.0,92767.0,0.0107765]
[1765399995225,0.00010637,92768.0,92767.0,0.0107765]
[1765399995432,0.26950637,92768.0,92767.0,0.0107765]
[1765399995826,0.26950637,92768.0,92767.0,0.3715765]